[Event "Live Chess"]
[Site "Chess.com"]
[Date "2023.05.21"]
[Round "-"]
[White "martynstanley"]
[Black "diana21strabt"]
[Result "0-1"]
[WhiteElo "999"]
[BlackElo "1721"]
[TimeControl "300"]
[EndTime "23:45:39 PDT"]
[Termination "diana21strabt won by checkmate"]

1. d4 {[%clk 0:04:59.3]} 1... Nf6 {[%clk 0:04:58.7]} 2. e3 {[%clk 0:04:58.1]}
2... d5 {[%clk 0:04:57.4]} 3. Bd3 {[%clk 0:04:57.7]} 3... e6 {[%clk 0:04:56.2]}
4. c3 {[%clk 0:04:57.1]} 4... c5 {[%clk 0:04:55.2]} 5. f4 {[%clk 0:04:56.1]}
5... cxd4 {[%clk 0:04:54.1]} 6. exd4 {[%clk 0:04:55]} 6... Bd6 {[%clk
0:04:51.6]} 7. Nf3 {[%clk 0:04:54.1]} 7... Qc7 {[%clk 0:04:50.6]} 8. O-O {[%clk
0:04:53.3]} 8... Nc6 {[%clk 0:04:44.5]} 9. Ne5 {[%clk 0:04:52.3]} 9... Nd7
{[%clk 0:04:28.1]} 10. Rf3 {[%clk 0:04:46.1]} 10... f6 {[%clk 0:04:26.5]} 11.
Nd2 {[%clk 0:04:36.5]} 11... fxe5 {[%clk 0:04:24.1]} 12. fxe5 {[%clk 0:04:35.8]}
12... Be7 {[%clk 0:04:16]} 13. Qe2 {[%clk 0:04:32.3]} 13... Ndxe5 {[%clk
0:03:51.6]} 14. dxe5 {[%clk 0:04:30.3]} 14... Nxe5 {[%clk 0:03:50.6]} 15. Rf2
{[%clk 0:04:25.9]} 15... Bc5 {[%clk 0:03:46.6]} 16. Nf3 {[%clk 0:04:19.4]} 16...
Nxd3 {[%clk 0:03:44.4]} 17. Qxd3 {[%clk 0:04:17.4]} 17... Bxf2+ {[%clk
0:03:34.3]} 18. Kxf2 {[%clk 0:04:15.8]} 18... O-O {[%clk 0:03:33.2]} 19. b3
{[%clk 0:04:10.6]} 19... Qxh2 {[%clk 0:03:31.1]} 20. Bb2 {[%clk 0:04:09.1]}
20... Qh4+ {[%clk 0:03:25.9]} 21. Ke2 {[%clk 0:04:05.9]} 21... Qe4+ {[%clk
0:03:23.7]} 22. Qxe4 {[%clk 0:03:59]} 22... dxe4 {[%clk 0:03:22.7]} 23. Ne5
{[%clk 0:03:56.6]} 23... Rf5 {[%clk 0:03:19.8]} 24. c4 {[%clk 0:03:55]} 24... b6
{[%clk 0:03:17.5]} 25. Rg1 {[%clk 0:03:46.9]} 25... Bb7 {[%clk 0:03:15.4]} 26.
g3 {[%clk 0:03:45.1]} 26... Rd8 {[%clk 0:03:13.2]} 27. g4 {[%clk 0:03:43.9]}
27... Rg5 {[%clk 0:03:06.7]} 28. Ke3 {[%clk 0:03:35.3]} 28... h5 {[%clk
0:03:00.4]} 29. Kf4 {[%clk 0:03:30.4]} 29... Rxg4+ {[%clk 0:02:50.2]} 30. Nxg4
{[%clk 0:03:28.7]} 30... hxg4 {[%clk 0:02:49.2]} 31. Rxg4 {[%clk 0:03:27.7]}
31... Rf8+ {[%clk 0:02:46.1]} 32. Ke3 {[%clk 0:03:24.4]} 32... Rf3+ {[%clk
0:02:43.4]} 33. Ke2 {[%clk 0:03:21.3]} 33... Rf7 {[%clk 0:02:34.4]} 34. Ke3
{[%clk 0:03:18.3]} 34... a6 {[%clk 0:02:28.2]} 35. a3 {[%clk 0:03:15]} 35...
Rf3+ {[%clk 0:02:23.8]} 36. Ke2 {[%clk 0:03:13.4]} 36... Rxb3 {[%clk 0:02:22.4]}
37. Rxg7+ {[%clk 0:03:08.5]} 37... Kf8 {[%clk 0:02:21.4]} 38. Rxb7 {[%clk
0:03:07.1]} 38... Rxb2+ {[%clk 0:02:20.1]} 39. Ke3 {[%clk 0:03:06.1]} 39... Rb3+
{[%clk 0:02:14.5]} 40. Kxe4 {[%clk 0:03:03.8]} 40... Rxa3 {[%clk 0:02:13.5]} 41.
Rxb6 {[%clk 0:03:02.7]} 41... Ke7 {[%clk 0:02:06.2]} 42. Ke5 {[%clk 0:02:58.8]}
42... Ra5+ {[%clk 0:02:03.3]} 43. Kd4 {[%clk 0:02:55.8]} 43... Kf6 {[%clk
0:01:58.7]} 44. c5 {[%clk 0:02:52.8]} 44... Ra4+ {[%clk 0:01:57.4]} 45. Kc3
{[%clk 0:02:50.8]} 45... Ke5 {[%clk 0:01:37.7]} 46. c6 {[%clk 0:02:49.2]} 46...
Kd6 {[%clk 0:01:35.7]} 47. c7+ {[%clk 0:02:47]} 47... Kxc7 {[%clk 0:01:33.7]}
48. Rxe6 {[%clk 0:02:45.7]} 48... Kb7 {[%clk 0:01:31.8]} 49. Re7+ {[%clk
0:02:44.9]} 49... Kb6 {[%clk 0:01:30.6]} 50. Re6+ {[%clk 0:02:44]} 50... Kc5
{[%clk 0:01:29.2]} 51. Re5+ {[%clk 0:02:43.1]} 51... Kd6 {[%clk 0:01:28]} 52.
Re3 {[%clk 0:02:41.8]} 52... Rh4 {[%clk 0:01:26.2]} 53. Rd3+ {[%clk 0:02:40.7]}
53... Kc5 {[%clk 0:01:24.8]} 54. Kc2 {[%clk 0:02:39.5]} 54... Kb4 {[%clk
0:01:20.1]} 55. Rb3+ {[%clk 0:02:38.3]} 55... Ka4 {[%clk 0:01:19.4]} 56. Kb2
{[%clk 0:02:36.8]} 56... Rh2+ {[%clk 0:01:17.7]} 57. Kc3 {[%clk 0:02:35.5]}
57... Rh3+ {[%clk 0:01:16.8]} 58. Kc4 {[%clk 0:02:33.7]} 58... Rxb3 {[%clk
0:01:15.8]} 59. Kd5 {[%clk 0:02:32.2]} 59... a5 {[%clk 0:01:12.1]} 60. Kd4
{[%clk 0:02:31.2]} 60... Rb4+ {[%clk 0:01:10.2]} 61. Kc3 {[%clk 0:02:30.3]}
61... Ka3 {[%clk 0:01:09.3]} 62. Kc2 {[%clk 0:02:28.3]} 62... a4 {[%clk
0:01:08.2]} 63. Kc3 {[%clk 0:02:27.7]} 63... Rb3+ {[%clk 0:01:06]} 64. Kc2
{[%clk 0:02:26.6]} 64... Ka2 {[%clk 0:01:05.1]} 65. Kc1 {[%clk 0:02:25.2]} 65...
a3 {[%clk 0:01:03.9]} 66. Kc2 {[%clk 0:02:24.4]} 66... Rb2+ {[%clk 0:01:03]} 67.
Kc1 {[%clk 0:02:23.3]} 67... Ka1 {[%clk 0:01:01.1]} 68. Kd1 {[%clk 0:02:21.1]}
68... Kb1 {[%clk 0:00:58.8]} 69. Ke1 {[%clk 0:02:19]} 69... a2 {[%clk
0:00:58.2]} 70. Kf1 {[%clk 0:02:17.2]} 70... a1=Q {[%clk 0:00:56.8]} 71. Kg1
{[%clk 0:02:13.7]} 71... Ka2# {[%clk 0:00:55.1]} 0-1

[Event "Live Chess"]
[Site "Chess.com"]
[Date "2023.05.21"]
[Round "-"]
[White "YrrriKharkiv"]
[Black "Geomorph"]
[Result "1-0"]
[WhiteElo "2043"]
[BlackElo "1272"]
[TimeControl "300"]
[EndTime "23:45:41 PDT"]
[Termination "YrrriKharkiv won by resignation"]

1. d4 {[%clk 0:04:56.2]} 1... d5 {[%clk 0:04:59]} 2. Nf3 {[%clk 0:04:55.8]} 2...
Nf6 {[%clk 0:04:57.3]} 3. c4 {[%clk 0:04:55.4]} 3... c6 {[%clk 0:04:54.2]} 4.
Nc3 {[%clk 0:04:53.4]} 4... Bf5 {[%clk 0:04:50.8]} 5. cxd5 {[%clk 0:04:51.9]}
5... cxd5 {[%clk 0:04:48.8]} 6. Qb3 {[%clk 0:04:51]} 6... e6 {[%clk 0:04:38.4]}
7. Qxb7 {[%clk 0:04:46.1]} 7... Nbd7 {[%clk 0:04:37.2]} 8. e3 {[%clk 0:04:39.5]}
8... Be7 {[%clk 0:04:36.3]} 9. Qb3 {[%clk 0:04:31.9]} 9... O-O {[%clk
0:04:26.5]} 10. Qd1 {[%clk 0:04:31.4]} 10... Rb8 {[%clk 0:04:25.1]} 11. Bd3
{[%clk 0:04:30.2]} 11... Bg6 {[%clk 0:04:22.2]} 12. Bxg6 {[%clk 0:04:28.3]}
12... hxg6 {[%clk 0:04:19]} 13. O-O {[%clk 0:04:27.9]} 13... Kh7 {[%clk
0:04:13.3]} 14. Ng5+ {[%clk 0:04:20.3]} 14... Kh6 {[%clk 0:04:04.7]} 15. e4
{[%clk 0:04:18.9]} 15... Qb6 {[%clk 0:03:35.8]} 16. Nxe6+ {[%clk 0:04:02.1]}
16... Kh7 {[%clk 0:03:31.8]} 17. Nxf8+ {[%clk 0:04:00.9]} 17... Rxf8 {[%clk
0:03:29.1]} 18. e5 {[%clk 0:04:00.2]} 18... Nh5 {[%clk 0:03:24.6]} 19. g4 {[%clk
0:03:50.2]} 19... Ng3 {[%clk 0:03:09]} 20. hxg3 {[%clk 0:03:47.2]} 20... Rh8
{[%clk 0:03:08.1]} 21. Nxd5 {[%clk 0:03:44.3]} 21... Qe6 {[%clk 0:03:02.1]} 22.
Qf3 {[%clk 0:03:36.4]} 22... Kg8 {[%clk 0:02:59.1]} 23. Kg2 {[%clk 0:03:34.7]}
23... Bd8 {[%clk 0:02:47.8]} 24. Nf4 {[%clk 0:03:25.3]} 24... Qb6 {[%clk
0:02:42.8]} 25. Be3 {[%clk 0:03:19.7]} 25... Qxb2 {[%clk 0:02:36.1]} 26. Rab1
{[%clk 0:03:17.3]} 26... Qxa2 {[%clk 0:02:33.5]} 27. Rb7 {[%clk 0:03:15.9]}
27... Qa4 {[%clk 0:02:28.3]} 28. Qd5 {[%clk 0:03:12.3]} 1-0

[Event "Live Chess"]
[Site "Chess.com"]
[Date "2023.05.21"]
[Round "-"]
[White "ProfPoisson"]
[Black "Conradical12"]
[Result "1-0"]
[WhiteElo "1179"]
[BlackElo "1580"]
[TimeControl "300"]
[EndTime "23:45:42 PDT"]
[Termination "ProfPoisson won by checkmate"]

1. e4 {[%clk 0:04:52.4]} 1... e5 {[%clk 0:04:55.1]} 2. Nf3 {[%clk 0:04:49.3]}
2... Nc6 {[%clk 0:04:52.6]} 3. d4 {[%clk 0:04:47.6]} 3... exd4 {[%clk
0:04:50.9]} 4. Bc4 {[%clk 0:04:45.9]} 4... Nf6 {[%clk 0:04:50.1]} 5. e5 {[%clk
0:04:43.4]} 5... Ng4 {[%clk 0:04:47.3]} 6. Nxd4 {[%clk 0:04:39.7]} 6... d5
{[%clk 0:04:44.6]} 7. Nxc6 {[%clk 0:04:26.4]} 7... bxc6 {[%clk 0:04:42]} 8. Be2
{[%clk 0:04:21.3]} 8... Qh4 {[%clk 0:04:37.6]} 9. g3 {[%clk 0:04:02.5]} 9... Qh3
{[%clk 0:04:30.4]} 10. Be3 {[%clk 0:03:47.7]} 10... Nxe3 {[%clk 0:04:18]} 11.
fxe3 {[%clk 0:03:40]} 11... g6 {[%clk 0:04:17.5]} 12. Bf1 {[%clk 0:03:30.5]}
12... Qe6 {[%clk 0:04:12.2]} 13. Nc3 {[%clk 0:03:24.6]} 13... Qxe5 {[%clk
0:04:08.3]} 14. Qe2 {[%clk 0:03:16.6]} 14... Bb4 {[%clk 0:03:58.7]} 15. Qd3
{[%clk 0:03:04]} 15... Ba6 {[%clk 0:03:51.2]} 16. Qxa6 {[%clk 0:02:57.5]} 16...
Bxc3+ {[%clk 0:03:47.2]} 17. bxc3 {[%clk 0:02:54.7]} 17... Qxc3+ {[%clk
0:03:45.5]} 18. Kf2 {[%clk 0:02:47.7]} 18... O-O {[%clk 0:03:34.9]} 19. Bg2
{[%clk 0:02:33.4]} 19... Rfe8 {[%clk 0:03:26.1]} 20. Rhe1 {[%clk 0:02:22.1]}
20... d4 {[%clk 0:03:18.6]} 21. e4 {[%clk 0:02:03.8]} 21... Qxc2+ {[%clk
0:03:11.1]} 22. Kg1 {[%clk 0:01:54.2]} 22... d3 {[%clk 0:03:06.3]} 23. Rec1
{[%clk 0:01:23.1]} 23... Qe2 {[%clk 0:02:35.9]} 24. Re1 {[%clk 0:01:20.4]} 24...
Qh5 {[%clk 0:02:30.6]} 25. Qxd3 {[%clk 0:01:16.6]} 25... Rad8 {[%clk 0:02:27.7]}
26. Qf3 {[%clk 0:01:12.3]} 26... Qc5+ {[%clk 0:02:23.3]} 27. Kh1 {[%clk
0:01:03.3]} 27... Qa5 {[%clk 0:01:57.6]} 28. a4 {[%clk 0:00:55.1]} 28... Rd2
{[%clk 0:01:49.6]} 29. Red1 {[%clk 0:00:44]} 29... Rb8 {[%clk 0:01:41.5]} 30.
Rxd2 {[%clk 0:00:42]} 30... Qxd2 {[%clk 0:01:38.4]} 31. Rf1 {[%clk 0:00:38.9]}
31... f5 {[%clk 0:01:32.1]} 32. exf5 {[%clk 0:00:36.6]} 32... Rb2 {[%clk
0:01:19.8]} 33. fxg6 {[%clk 0:00:29.3]} 33... Kg7 {[%clk 0:01:12.6]} 34. Qf6+
{[%clk 0:00:20]} 34... Kh6 {[%clk 0:01:08.8]} 35. gxh7+ {[%clk 0:00:18.2]} 35...
Kxh7 {[%clk 0:01:04.4]} 36. Be4+ {[%clk 0:00:15.9]} 36... Kg8 {[%clk 0:01:01.4]}
37. Qf7+ {[%clk 0:00:13.9]} 37... Kh8 {[%clk 0:00:59.3]} 38. Qh7# {[%clk
0:00:12.1]} 1-0

[Event "Live Chess"]
[Site "Chess.com"]
[Date "2023.05.21"]
[Round "-"]
[White "Hacker_2009"]
[Black "tpm07"]
[Result "1/2-1/2"]
[WhiteElo "1936"]
[BlackElo "1924"]
[TimeControl "300"]
[EndTime "23:45:43 PDT"]
[Termination "Game drawn by repetition"]

1. d4 {[%clk 0:04:55.3]} 1... Nf6 {[%clk 0:04:56.7]} 2. Nf3 {[%clk 0:04:54.7]}
2... d5 {[%clk 0:04:55.2]} 3. e3 {[%clk 0:04:53.7]} 3... g6 {[%clk 0:04:52.1]}
4. c4 {[%clk 0:04:52.5]} 4... Bg7 {[%clk 0:04:49.8]} 5. Nc3 {[%clk 0:04:51.2]}
5... O-O {[%clk 0:04:47.6]} 6. Be2 {[%clk 0:04:50.4]} 6... dxc4 {[%clk
0:04:38.7]} 7. Bxc4 {[%clk 0:04:49.2]} 7... c5 {[%clk 0:04:38]} 8. O-O {[%clk
0:04:47.8]} 8... cxd4 {[%clk 0:04:36.4]} 9. Nxd4 {[%clk 0:04:46.4]} 9... Qc7
{[%clk 0:04:21]} 10. b3 {[%clk 0:04:42]} 10... Rd8 {[%clk 0:04:16.5]} 11. Qe2
{[%clk 0:04:39.1]} 11... a6 {[%clk 0:04:13.3]} 12. Bb2 {[%clk 0:04:34.2]} 12...
b5 {[%clk 0:04:12.1]} 13. Bd3 {[%clk 0:04:32.6]} 13... Bb7 {[%clk 0:04:09.1]}
14. Rac1 {[%clk 0:04:30.1]} 14... Qd7 {[%clk 0:04:02.2]} 15. Rfd1 {[%clk
0:04:28.2]} 15... Nc6 {[%clk 0:03:54.2]} 16. Nxc6 {[%clk 0:04:26.7]} 16... Qxc6
{[%clk 0:03:53.4]} 17. Ne4 {[%clk 0:04:09.5]} 17... Qe8 {[%clk 0:03:23.6]} 18.
Nxf6+ {[%clk 0:04:06.4]} 18... Bxf6 {[%clk 0:03:19.1]} 19. Bxf6 {[%clk
0:04:03.6]} 19... exf6 {[%clk 0:03:19]} 20. Qb2 {[%clk 0:03:53.5]} 20... Qe5
{[%clk 0:03:16]} 21. Qxe5 {[%clk 0:03:36.3]} 21... fxe5 {[%clk 0:03:15.9]} 22.
Be2 {[%clk 0:03:32.4]} 22... Kf8 {[%clk 0:02:55.7]} 23. Bf3 {[%clk 0:03:28.5]}
23... Bxf3 {[%clk 0:02:54.4]} 24. gxf3 {[%clk 0:03:26.3]} 24... Rxd1+ {[%clk
0:02:52.8]} 25. Rxd1 {[%clk 0:03:24.5]} 25... Ke7 {[%clk 0:02:51.3]} 26. Rd5
{[%clk 0:03:20.9]} 26... f6 {[%clk 0:02:48.6]} 27. Rc5 {[%clk 0:03:19]} 27...
Rd8 {[%clk 0:02:45.3]} 28. Rc7+ {[%clk 0:03:17.3]} 28... Rd7 {[%clk 0:02:42.7]}
29. Rc6 {[%clk 0:03:14.9]} 29... Rd6 {[%clk 0:02:41.7]} 30. Rc7+ {[%clk
0:03:13.6]} 30... Rd7 {[%clk 0:02:40.7]} 31. Rc6 {[%clk 0:03:08]} 31... Rd6
{[%clk 0:02:39.5]} 32. Rc7+ {[%clk 0:03:07.3]} 32... Rd7 {[%clk 0:02:38.5]}
1/2-1/2

[Event "Live Chess"]
[Site "Chess.com"]
[Date "2023.05.21"]
[Round "-"]
[White "smoggyrabbit"]
[Black "Doge_Dandolo"]
[Result "1-0"]
[WhiteElo "1734"]
[BlackElo "1897"]
[TimeControl "300"]
[EndTime "23:46:00 PDT"]
[Termination "smoggyrabbit won by checkmate"]

1. d4 {[%clk 0:04:58.9]} 1... d5 {[%clk 0:04:58.2]} 2. Nf3 {[%clk 0:04:58]} 2...
Nf6 {[%clk 0:04:56.9]} 3. e3 {[%clk 0:04:57.3]} 3... Bg4 {[%clk 0:04:54.8]} 4.
Nbd2 {[%clk 0:04:49.1]} 4... c6 {[%clk 0:04:53.8]} 5. h3 {[%clk 0:04:45.8]} 5...
Bh5 {[%clk 0:04:52]} 6. g4 {[%clk 0:04:45]} 6... Bg6 {[%clk 0:04:50.3]} 7. Ne5
{[%clk 0:04:44.1]} 7... Nbd7 {[%clk 0:04:48.1]} 8. h4 {[%clk 0:04:41.6]} 8...
Nxe5 {[%clk 0:04:43.9]} 9. dxe5 {[%clk 0:04:40.8]} 9... Ne4 {[%clk 0:04:42.1]}
10. Nxe4 {[%clk 0:04:36]} 10... Bxe4 {[%clk 0:04:40]} 11. f3 {[%clk 0:04:34.3]}
11... Bg6 {[%clk 0:04:32.1]} 12. h5 {[%clk 0:04:33.3]} 12... Qc7 {[%clk
0:04:26.8]} 13. hxg6 {[%clk 0:04:30.3]} 13... fxg6 {[%clk 0:04:22.3]} 14. f4
{[%clk 0:04:23.5]} 14... e6 {[%clk 0:04:17.8]} 15. Bd3 {[%clk 0:04:15.2]} 15...
O-O-O {[%clk 0:04:11]} 16. Bxg6 {[%clk 0:04:05.5]} 16... Bc5 {[%clk 0:04:09.3]}
17. Bd3 {[%clk 0:03:52.5]} 17... g5 {[%clk 0:04:06.4]} 18. Bd2 {[%clk
0:03:45.2]} 18... Qf7 {[%clk 0:04:01.7]} 19. Qf3 {[%clk 0:03:18.1]} 19... d4
{[%clk 0:04:00]} 20. f5 {[%clk 0:02:51.6]} 20... dxe3 {[%clk 0:03:54.2]} 21.
Bxe3 {[%clk 0:02:48.5]} 21... Bb4+ {[%clk 0:03:52]} 22. Bd2 {[%clk 0:02:45.6]}
22... Bc5 {[%clk 0:03:49.3]} 23. O-O-O {[%clk 0:02:17.5]} 23... Kb8 {[%clk
0:03:47.8]} 24. Bc4 {[%clk 0:02:01]} 24... Rd4 {[%clk 0:03:43.1]} 25. Bxe6
{[%clk 0:01:57.7]} 25... Qc7 {[%clk 0:03:40.8]} 26. Bxg5 {[%clk 0:01:41.4]}
26... Qa5 {[%clk 0:03:36.1]} 27. Rxd4 {[%clk 0:01:05]} 27... Bxd4 {[%clk
0:03:32]} 28. Bf6 {[%clk 0:00:46]} 28... Qb5 {[%clk 0:03:28.1]} 29. Bb3 {[%clk
0:00:39.8]} 29... Re8 {[%clk 0:03:23.9]} 30. Rxh7 {[%clk 0:00:33.9]} 30... a5
{[%clk 0:03:22.7]} 31. Rd7 {[%clk 0:00:25.6]} 31... a4 {[%clk 0:03:10.9]} 32.
Rxd4 {[%clk 0:00:23.9]} 32... axb3 {[%clk 0:03:09.7]} 33. axb3 {[%clk 0:00:22]}
33... Qa5 {[%clk 0:03:06.6]} 34. e6 {[%clk 0:00:19.8]} 34... c5 {[%clk 0:03:00]}
35. Rd7 {[%clk 0:00:17.5]} 35... Qb5 {[%clk 0:02:56.1]} 36. Be5+ {[%clk
0:00:14.5]} 36... Ka8 {[%clk 0:02:54.4]} 37. Qd3 {[%clk 0:00:12.1]} 37... Qc6
{[%clk 0:02:50.7]} 38. Rd6 {[%clk 0:00:09.4]} 38... Qh1+ {[%clk 0:02:48.2]} 39.
Kd2 {[%clk 0:00:07.9]} 39... Qg2+ {[%clk 0:02:45.7]} 40. Kc3 {[%clk 0:00:07.2]}
40... b5 {[%clk 0:02:38.2]} 41. Qxb5 {[%clk 0:00:04.8]} 41... Qf3+ {[%clk
0:02:35.1]} 42. Rd3 {[%clk 0:00:03.3]} 42... Qe4 {[%clk 0:02:30.6]} 43. Qa6#
{[%clk 0:00:02.2]} 1-0

[Event "Live Chess"]
[Site "Chess.com"]
[Date "2023.05.21"]
[Round "-"]
[White "BillythekidFellowes"]
[Black "nigelst"]
[Result "1-0"]
[WhiteElo "2023"]
[BlackElo "1708"]
[TimeControl "300"]
[EndTime "23:46:18 PDT"]
[Termination "BillythekidFellowes won on time"]

1. e4 {[%clk 0:04:56.6]} 1... c6 {[%clk 0:04:59]} 2. Nc3 {[%clk 0:04:55]} 2...
d5 {[%clk 0:04:57.9]} 3. d4 {[%clk 0:04:53.1]} 3... dxe4 {[%clk 0:04:56.5]} 4.
Nxe4 {[%clk 0:04:53]} 4... Nf6 {[%clk 0:04:56]} 5. Nxf6+ {[%clk 0:04:40.4]} 5...
exf6 {[%clk 0:04:54.7]} 6. Be3 {[%clk 0:04:32.5]} 6... Bd6 {[%clk 0:04:52.5]} 7.
Bd3 {[%clk 0:04:29.8]} 7... O-O {[%clk 0:04:50.5]} 8. h4 {[%clk 0:04:21.2]} 8...
Re8 {[%clk 0:04:47.9]} 9. Qd2 {[%clk 0:04:10.7]} 9... Bf4 {[%clk 0:04:43.8]} 10.
O-O-O {[%clk 0:03:58.1]} 10... Bxe3 {[%clk 0:04:38.8]} 11. fxe3 {[%clk 0:03:58]}
11... Be6 {[%clk 0:04:30.7]} 12. b3 {[%clk 0:03:29.1]} 12... Qe7 {[%clk
0:04:24.9]} 13. Kb2 {[%clk 0:03:25.9]} 13... a5 {[%clk 0:04:21.6]} 14. Nf3
{[%clk 0:03:06.9]} 14... Na6 {[%clk 0:04:12.8]} 15. e4 {[%clk 0:03:03.7]} 15...
a4 {[%clk 0:04:08.5]} 16. e5 {[%clk 0:02:58.5]} 16... axb3 {[%clk 0:04:03.2]}
17. axb3 {[%clk 0:02:54.1]} 17... fxe5 {[%clk 0:04:00.1]} 18. dxe5 {[%clk
0:02:44.3]} 18... Nc5 {[%clk 0:03:43.9]} 19. Ra1 {[%clk 0:02:41]} 19... Nxd3+
{[%clk 0:03:41.2]} 20. Qxd3 {[%clk 0:02:37.5]} 20... Bd5 {[%clk 0:03:20.6]} 21.
Rxa8 {[%clk 0:02:19.2]} 21... Rxa8 {[%clk 0:03:15.6]} 22. Re1 {[%clk 0:02:17.9]}
22... Qa3+ {[%clk 0:03:09]} 23. Kc3 {[%clk 0:02:15.5]} 23... Bxf3 {[%clk
0:03:00.8]} 24. gxf3 {[%clk 0:01:59.6]} 24... Qa5+ {[%clk 0:02:56.5]} 25. b4
{[%clk 0:01:58.7]} 25... Qa3+ {[%clk 0:02:49.2]} 26. Kc4 {[%clk 0:01:48.1]}
26... Qa6+ {[%clk 0:02:23.6]} 27. Kc3 {[%clk 0:01:37.6]} 27... Qa3+ {[%clk
0:02:19.6]} 28. Kc4 {[%clk 0:01:10.2]} 28... b5+ {[%clk 0:02:10.9]} 29. Kc5
{[%clk 0:01:08.3]} 29... Qa7+ {[%clk 0:02:07.7]} 30. Kxc6 {[%clk 0:01:05.5]}
30... Rc8+ {[%clk 0:01:59.7]} 31. Kxb5 {[%clk 0:00:50.4]} 31... Rb8+ {[%clk
0:01:50.6]} 32. Kc4 {[%clk 0:00:47.4]} 32... Qa2+ {[%clk 0:01:45.9]} 33. Qb3
{[%clk 0:00:43.2]} 33... Qa6+ {[%clk 0:01:40.5]} 34. b5 {[%clk 0:00:39.7]} 34...
Qe6+ {[%clk 0:01:20.6]} 35. Kb4 {[%clk 0:00:24.7]} 35... Qe7+ {[%clk 0:01:17.7]}
36. Kc3 {[%clk 0:00:22.7]} 36... Rc8+ {[%clk 0:01:13.9]} 37. Kb2 {[%clk
0:00:21.8]} 37... Qxh4 {[%clk 0:01:10.3]} 38. b6 {[%clk 0:00:19.4]} 38... Qxe1
{[%clk 0:01:07.1]} 39. b7 {[%clk 0:00:18.9]} 39... Rb8 {[%clk 0:01:03.2]} 40.
Qb5 {[%clk 0:00:17.3]} 40... Qe3 {[%clk 0:00:51.1]} 41. Qc6 {[%clk 0:00:15.7]}
41... Qxe5+ {[%clk 0:00:46.8]} 42. c3 {[%clk 0:00:15]} 42... Qe2+ {[%clk
0:00:43.5]} 43. Kb3 {[%clk 0:00:13.1]} 43... Qd1+ {[%clk 0:00:41.2]} 44. Ka3
{[%clk 0:00:10.9]} 44... Qc1+ {[%clk 0:00:38.3]} 45. Ka4 {[%clk 0:00:09.4]}
45... Qa1+ {[%clk 0:00:33.9]} 46. Kb5 {[%clk 0:00:08.8]} 46... Qb2+ {[%clk
0:00:32.7]} 47. Ka6 {[%clk 0:00:08.5]} 47... Qa3+ {[%clk 0:00:29.9]} 48. Kb6
{[%clk 0:00:07.9]} 48... Qb3+ {[%clk 0:00:28.3]} 49. Kc7 {[%clk 0:00:06.9]}
49... Qxb7+ {[%clk 0:00:18.5]} 50. Qxb7 {[%clk 0:00:06.8]} 50... Rxb7+ {[%clk
0:00:17.3]} 51. Kxb7 {[%clk 0:00:06.7]} 51... h5 {[%clk 0:00:16.4]} 52. c4
{[%clk 0:00:06.6]} 52... h4 {[%clk 0:00:15.3]} 53. c5 {[%clk 0:00:06.5]} 53...
h3 {[%clk 0:00:14.3]} 54. c6 {[%clk 0:00:06.4]} 54... h2 {[%clk 0:00:13.4]} 55.
c7 {[%clk 0:00:06.3]} 55... h1=Q {[%clk 0:00:11.3]} 56. c8=Q+ {[%clk 0:00:06.2]}
56... Kh7 {[%clk 0:00:08.9]} 57. Qc2+ {[%clk 0:00:06.1]} 57... g6 {[%clk
0:00:06.3]} 58. Qc3 {[%clk 0:00:06]} 58... Qd1 {[%clk 0:00:01.9]} 59. Qf6 {[%clk
0:00:05]} 1-0

[Event "Live Chess"]
[Site "Chess.com"]
[Date "2023.05.21"]
[Round "-"]
[White "Biranidun"]
[Black "Jo1ts"]
[Result "1-0"]
[WhiteElo "2563"]
[BlackElo "839"]
[TimeControl "300"]
[EndTime "23:46:18 PDT"]
[Termination "Biranidun won by resignation"]

1. e4 {[%clk 0:04:59.3]} 1... d5 {[%clk 0:04:58.1]} 2. exd5 {[%clk 0:04:57.3]}
2... Qxd5 {[%clk 0:04:55.1]} 3. Nc3 {[%clk 0:04:56.9]} 3... Qd8 {[%clk
0:04:54.2]} 4. d4 {[%clk 0:04:56.3]} 4... Nf6 {[%clk 0:04:50.4]} 5. Nf3 {[%clk
0:04:55.7]} 5... Bg4 {[%clk 0:04:47.4]} 6. h3 {[%clk 0:04:54.6]} 6... Bh5 {[%clk
0:04:46.6]} 7. g4 {[%clk 0:04:53.3]} 7... Bg6 {[%clk 0:04:46.1]} 8. Ne5 {[%clk
0:04:52.6]} 8... Be4 {[%clk 0:04:28.7]} 9. Nxe4 {[%clk 0:04:50.8]} 9... Nxe4
{[%clk 0:04:28.6]} 10. Qf3 {[%clk 0:04:48.3]} 10... Nd6 {[%clk 0:04:20.1]} 11.
Bg2 {[%clk 0:04:37.4]} 11... c6 {[%clk 0:04:12.9]} 12. Bf4 {[%clk 0:04:34]}
12... f6 {[%clk 0:04:10.2]} 13. O-O-O {[%clk 0:04:30.4]} 13... Nd7 {[%clk
0:04:01.8]} 14. Qb3 {[%clk 0:04:22.3]} 14... Rc8 {[%clk 0:03:46.3]} 15. Nd3
{[%clk 0:04:16.8]} 15... Nb5 {[%clk 0:03:30.6]} 16. Nc5 {[%clk 0:04:10.6]} 16...
b6 {[%clk 0:03:09.9]} 17. Ne6 {[%clk 0:04:09.2]} 1-0

[Event "Live Chess"]
[Site "Chess.com"]
[Date "2023.05.21"]
[Round "-"]
[White "Supertromp"]
[Black "jbooth"]
[Result "1-0"]
[WhiteElo "2132"]
[BlackElo "1694"]
[TimeControl "300"]
[EndTime "23:46:20 PDT"]
[Termination "Supertromp won by resignation"]

1. e4 {[%clk 0:04:58.7]} 1... d6 {[%clk 0:04:57.3]} 2. d4 {[%clk 0:04:57.4]}
2... Nf6 {[%clk 0:04:54.7]} 3. Nc3 {[%clk 0:04:57]} 3... Nbd7 {[%clk 0:04:53.4]}
4. f4 {[%clk 0:04:53.4]} 4... e5 {[%clk 0:04:50.8]} 5. Nf3 {[%clk 0:04:52.7]}
5... exd4 {[%clk 0:04:49.3]} 6. Qxd4 {[%clk 0:04:52.6]} 6... Be7 {[%clk
0:04:46.7]} 7. e5 {[%clk 0:04:49.1]} 7... dxe5 {[%clk 0:04:42.2]} 8. fxe5 {[%clk
0:04:49]} 8... Ng8 {[%clk 0:04:36.5]} 9. Bc4 {[%clk 0:04:28.1]} 9... c6 {[%clk
0:04:28.6]} 10. Qf4 {[%clk 0:04:12.5]} 10... f6 {[%clk 0:04:22.5]} 11. O-O
{[%clk 0:04:08.6]} 11... Nb6 {[%clk 0:04:11.8]} 12. Bb3 {[%clk 0:04:02.2]} 12...
Nd5 {[%clk 0:03:56.1]} 13. Nxd5 {[%clk 0:04:00.6]} 13... cxd5 {[%clk 0:03:54.9]}
14. Rd1 {[%clk 0:03:53]} 14... Be6 {[%clk 0:03:52.7]} 15. Nd4 {[%clk 0:03:51.8]}
15... Qb6 {[%clk 0:03:38.8]} 16. Be3 {[%clk 0:03:48]} 16... fxe5 {[%clk
0:03:36.9]} 17. Qxe5 {[%clk 0:03:46.7]} 17... Kd7 {[%clk 0:03:33.4]} 18. Nxe6
{[%clk 0:03:40]} 18... Qxe6 {[%clk 0:03:30.8]} 19. Rxd5+ {[%clk 0:03:39.5]} 1-0